[Event "Titled Tuesday Blitz June 20 Early 2023"]
[White "Zaichenko, Daria"]
[Black "Bettalli, Francesco"]
[WhiteFideId "4197453"]
[BlackFideId "2816453"]
[WhiteElo "2039"]
[BlackElo "2216"]
[Result "0-1"]
[Round "6"]
[TimeControl "180+2"]
[Date "2023.06.20"]
[WhiteClock "0:01:25"]
[BlackClock "0:02:37"]
[Board "152"]

1. e4 {[%clk 0:02:39]}  e5 {[%clk 0:02:58]} 2. Nf3 {[%clk 0:02:38]}  Nf6 {[%clk 0:02:59]} 3. Nxe5 {[%clk 0:02:37]}  Nc6 {[%clk 0:03:00]} 4. Nxc6 {[%clk 0:02:33]}  dxc6 {[%clk 0:03:01]} 5. Bd3 {[%clk 0:02:27]}  Bc5 {[%clk 0:03:01]} 6. h3 {[%clk 0:02:23]}  h5 {[%clk 0:02:59]} 7. Nc3 {[%clk 0:02:15]}  Be6 {[%clk 0:02:54]} 8. b3 {[%clk 0:02:10]}  Qd6 {[%clk 0:02:49]} 9. Bb2 {[%clk 0:02:10]}  O-O-O {[%clk 0:02:50]} 10. Na4 {[%clk 0:02:04]}  Bd4 {[%clk 0:02:45]} 11. c3 {[%clk 0:01:59]}  Bxf2+ {[%clk 0:02:44]} 12. Kxf2 {[%clk 0:01:58]}  Qxd3 {[%clk 0:02:45]} 13. Re1 {[%clk 0:01:54]}  Qxd2+ {[%clk 0:02:44]} 14. Re2 {[%clk 0:01:53]}  Qf4+ {[%clk 0:02:43]} 15. Kg1 {[%clk 0:01:52]}  Rxd1+ {[%clk 0:02:44]} 16. Rxd1 {[%clk 0:01:48]}  Ng4 {[%clk 0:02:45]} 17. hxg4 {[%clk 0:01:42]}  hxg4 {[%clk 0:02:44]} 18. c4 {[%clk 0:01:27]}  g3 {[%clk 0:02:39]} 19. Red2 {[%clk 0:01:25]}  Qe3+ {[%clk 0:02:37]} 20. Kf1 {[%clk 0:01:25]}  Rh1# {[%clk 0:02:37]} 0-1


[Site "https://www.chess.com"]

[Event "Titled Tuesday Blitz June 20 Early 2023"]
[White "Ruge, Edison"]
[Black "Andreev, Konstantin"]
[WhiteFideId "4401000"]
[BlackFideId "24239305"]
[WhiteElo "2175"]
[BlackElo "2106"]
[Result "0-1"]
[Round "6"]
[TimeControl "180+2"]
[Date "2023.06.20"]
[WhiteClock "0:00:00"]
[BlackClock "0:00:06"]
[Board "155"]

1. e4 {[%clk 0:03:00]}  c5 {[%clk 0:02:44]} 2. Nf3 {[%clk 0:03:00]}  e6 {[%clk 0:02:44]} 3. d3 {[%clk 0:03:01]}  Nc6 {[%clk 0:02:44]} 4. Nbd2 {[%clk 0:03:02]}  g6 {[%clk 0:02:44]} 5. g3 {[%clk 0:03:02]}  Bg7 {[%clk 0:02:45]} 6. Bg2 {[%clk 0:03:03]}  Nge7 {[%clk 0:02:45]} 7. h4 {[%clk 0:03:02]}  h5 {[%clk 0:02:45]} 8. O-O {[%clk 0:03:01]}  O-O {[%clk 0:02:42]} 9. Ng5 {[%clk 0:03:01]}  d6 {[%clk 0:02:39]} 10. f4 {[%clk 0:03:00]}  Rb8 {[%clk 0:02:32]} 11. Bf3 {[%clk 0:02:37]}  Qc7 {[%clk 0:02:27]} 12. Bxh5 {[%clk 0:02:34]}  f6 {[%clk 0:02:11]} 13. Bxg6 {[%clk 0:02:13]}  fxg5 {[%clk 0:02:05]} 14. Bh5 {[%clk 0:02:07]}  gxf4 {[%clk 0:01:53]} 15. gxf4 {[%clk 0:02:07]}  Kh8 {[%clk 0:01:46]} 16. Nf3 {[%clk 0:02:05]}  Ng8 {[%clk 0:01:31]} 17. Ng5 {[%clk 0:02:05]}  Nf6 {[%clk 0:01:31]} 18. Bf3 {[%clk 0:01:56]}  Nd4 {[%clk 0:01:28]} 19. Bg2 {[%clk 0:01:54]}  Bd7 {[%clk 0:01:24]} 20. c3 {[%clk 0:01:54]}  Nc6 {[%clk 0:01:24]} 21. Be3 {[%clk 0:01:46]}  Rbe8 {[%clk 0:01:18]} 22. d4 {[%clk 0:01:25]}  cxd4 {[%clk 0:01:16]} 23. cxd4 {[%clk 0:01:25]}  e5 {[%clk 0:01:14]} 24. fxe5 {[%clk 0:01:20]}  dxe5 {[%clk 0:01:14]} 25. d5 {[%clk 0:00:59]}  Nd4 {[%clk 0:01:12]} 26. Rxf6 {[%clk 0:00:59]}  Rxf6 {[%clk 0:01:11]} 27. Qh5+ {[%clk 0:00:59]}  Kg8 {[%clk 0:01:10]} 28. Qh7+ {[%clk 0:00:56]}  Kf8 {[%clk 0:01:10]} 29. Qh5 {[%clk 0:00:47]}  Kg8 {[%clk 0:00:18]} 30. Kh2 {[%clk 0:00:43]}  Qd6 {[%clk 0:00:16]} 31. Rf1 {[%clk 0:00:37]}  Rxf1 {[%clk 0:00:13]} 32. Bxf1 {[%clk 0:00:36]}  Re7 {[%clk 0:00:10]} 33. Qh7+ {[%clk 0:00:29]}  Kf8 {[%clk 0:00:10]} 34. Qh5 {[%clk 0:00:23]}  Be8 {[%clk 0:00:11]} 35. Qg4 {[%clk 0:00:18]}  Kg8 {[%clk 0:00:10]} 36. a3 {[%clk 0:00:12]}  Qf6 {[%clk 0:00:10]} 37. Bg2 {[%clk 0:00:11]}  Rc7 {[%clk 0:00:08]} 38. Bxd4 {[%clk 0:00:08]}  exd4 {[%clk 0:00:08]} 39. Ne6 {[%clk 0:00:08]}  Re7 {[%clk 0:00:07]} 40. h5 {[%clk 0:00:06]}  Bd7 {[%clk 0:00:07]} 41. Bh3 {[%clk 0:00:04]}  Bxe6 {[%clk 0:00:07]} 42. dxe6 {[%clk 0:00:04]}  d3 {[%clk 0:00:07]} 43. Qg3 {[%clk 0:00:00]}  Qe5 {[%clk 0:00:06]} 0-1


[Site "https://www.chess.com"]

[Event "Titled Tuesday Blitz June 20 Early 2023"]
[White "Grossboss19"]
[Black "Kev4444444444"]
[WhiteElo "2437"]
[BlackElo "2188"]
[Result "1-0"]
[Round "6"]
[TimeControl "180+2"]
[Date "2023.06.20"]
[WhiteClock "0:01:30"]
[BlackClock "0:00:06"]
[Board "157"]

1. c4 {[%clk 0:02:56]}  c6 {[%clk 0:02:57]} 2. Nc3 {[%clk 0:02:55]}  d5 {[%clk 0:02:57]} 3. d4 {[%clk 0:02:54]}  Nf6 {[%clk 0:02:54]} 4. b3 {[%clk 0:02:43]}  e6 {[%clk 0:02:53]} 5. Bb2 {[%clk 0:02:43]}  Be7 {[%clk 0:02:51]} 6. e3 {[%clk 0:02:44]}  O-O {[%clk 0:02:51]} 7. Bd3 {[%clk 0:02:45]}  Nbd7 {[%clk 0:02:50]} 8. Nf3 {[%clk 0:02:41]}  Bd6 {[%clk 0:02:42]} 9. O-O {[%clk 0:02:41]}  Qe7 {[%clk 0:02:40]} 10. Re1 {[%clk 0:02:40]}  dxc4 {[%clk 0:02:39]} 11. bxc4 {[%clk 0:02:39]}  e5 {[%clk 0:02:40]} 12. Qc2 {[%clk 0:02:39]}  Re8 {[%clk 0:02:34]} 13. Nd2 {[%clk 0:02:34]}  exd4 {[%clk 0:01:43]} 14. exd4 {[%clk 0:02:33]}  Qxe1+ {[%clk 0:01:43]} 15. Rxe1 {[%clk 0:02:34]}  Rxe1+ {[%clk 0:01:44]} 16. Nf1 {[%clk 0:02:34]}  Nf8 {[%clk 0:01:35]} 17. Qd2 {[%clk 0:02:32]}  Re7 {[%clk 0:01:30]} 18. Ng3 {[%clk 0:02:28]}  Bg4 {[%clk 0:01:29]} 19. f3 {[%clk 0:02:27]}  Bd7 {[%clk 0:01:29]} 20. Nce4 {[%clk 0:02:27]}  Nxe4 {[%clk 0:01:25]} 21. Nxe4 {[%clk 0:02:25]}  Bc7 {[%clk 0:01:25]} 22. Ba3 {[%clk 0:02:24]}  Ree8 {[%clk 0:01:22]} 23. Nd6 {[%clk 0:02:21]}  Bxd6 {[%clk 0:01:20]} 24. Bxd6 {[%clk 0:02:22]}  Re6 {[%clk 0:01:18]} 25. Bg3 {[%clk 0:02:18]}  Rae8 {[%clk 0:01:13]} 26. d5 {[%clk 0:02:12]}  cxd5 {[%clk 0:01:09]} 27. cxd5 {[%clk 0:02:13]}  Rb6 {[%clk 0:01:03]} 28. Bc7 {[%clk 0:02:09]}  Rf6 {[%clk 0:00:57]} 29. Qb2 {[%clk 0:02:00]}  b6 {[%clk 0:00:56]} 30. Be5 {[%clk 0:01:58]}  Rh6 {[%clk 0:00:23]} 31. Bxg7 {[%clk 0:01:57]}  Rh5 {[%clk 0:00:23]} 32. Bh8 {[%clk 0:01:44]}  Rg5 {[%clk 0:00:22]} 33. h4 {[%clk 0:01:44]}  Rg3 {[%clk 0:00:10]} 34. Kf2 {[%clk 0:01:40]}  f6 {[%clk 0:00:08]} 35. Qxf6 {[%clk 0:01:31]}  Ng6 {[%clk 0:00:06]} 36. Qg7# {[%clk 0:01:30]} 1-0


[Site "https://www.chess.com"]

[Event "Titled Tuesday Blitz June 20 Early 2023"]
[White "Brown, Raehanna"]
[Black "Sai Han Thiha"]
[WhiteFideId "7402740"]
[BlackFideId "13012290"]
[WhiteElo "1655"]
[BlackElo "1953"]
[Result "0-1"]
[Round "6"]
[TimeControl "180+2"]
[Date "2023.06.20"]
[WhiteClock "0:00:08"]
[BlackClock "0:00:16"]
[Board "158"]

1. c4 {[%clk 0:03:00]}  Nf6 {[%clk 0:02:58]} 2. Nc3 {[%clk 0:03:00]}  g6 {[%clk 0:02:59]} 3. e4 {[%clk 0:02:59]}  d6 {[%clk 0:02:54]} 4. d4 {[%clk 0:02:58]}  Bg7 {[%clk 0:02:55]} 5. Be2 {[%clk 0:02:58]}  O-O {[%clk 0:02:53]} 6. Nf3 {[%clk 0:02:57]}  e5 {[%clk 0:02:53]} 7. O-O {[%clk 0:02:58]}  Bg4 {[%clk 0:02:53]} 8. dxe5 {[%clk 0:02:41]}  Bxf3 {[%clk 0:02:46]} 9. exf6 {[%clk 0:02:39]}  Bxe2 {[%clk 0:02:46]} 10. Qxe2 {[%clk 0:02:36]}  Bxf6 {[%clk 0:02:44]} 11. Bh6 {[%clk 0:02:32]}  Re8 {[%clk 0:02:35]} 12. Nd5 {[%clk 0:02:31]}  c6 {[%clk 0:02:22]} 13. Nxf6+ {[%clk 0:02:26]}  Qxf6 {[%clk 0:02:23]} 14. Rfe1 {[%clk 0:01:56]}  Nd7 {[%clk 0:02:18]} 15. Rad1 {[%clk 0:01:44]}  Nc5 {[%clk 0:02:10]} 16. Bc1 {[%clk 0:01:16]}  Rxe4 {[%clk 0:02:02]} 17. Qd2 {[%clk 0:01:16]}  Rae8 {[%clk 0:01:56]} 18. Rxe4 {[%clk 0:01:10]}  Nxe4 {[%clk 0:01:49]} 19. Qc2 {[%clk 0:01:05]}  Re6 {[%clk 0:01:44]} 20. Be3 {[%clk 0:01:02]}  a6 {[%clk 0:01:30]} 21. Bd4 {[%clk 0:00:58]}  Qf5 {[%clk 0:01:19]} 22. f3 {[%clk 0:00:37]}  Ng3 {[%clk 0:01:15]} 23. Qb3 {[%clk 0:00:23]}  Ne2+ {[%clk 0:01:11]} 24. Kf2 {[%clk 0:00:23]}  Nxd4 {[%clk 0:00:26]} 25. Rxd4 {[%clk 0:00:24]}  Qe5 {[%clk 0:00:25]} 26. Qd1 {[%clk 0:00:18]}  Qe3+ {[%clk 0:00:24]} 27. Kf1 {[%clk 0:00:18]}  Qe5 {[%clk 0:00:19]} 28. b3 {[%clk 0:00:17]}  Qxh2 {[%clk 0:00:20]} 29. Kf2 {[%clk 0:00:16]}  Qe5 {[%clk 0:00:18]} 30. f4 {[%clk 0:00:15]}  Qe3+ {[%clk 0:00:18]} 31. Kf1 {[%clk 0:00:15]}  Rf6 {[%clk 0:00:16]} 32. Rd2 {[%clk 0:00:08]}  Rxf4+ {[%clk 0:00:16]} 0-1


[Site "https://www.chess.com"]

[Event "Titled Tuesday Blitz June 20 Early 2023"]
[White "whiteglovethief"]
[Black "Guha, Eshan"]
[BlackFideId "30958628"]
[WhiteElo "2510"]
[BlackElo "2365"]
[Result "1-0"]
[Round "6"]
[TimeControl "180+2"]
[Date "2023.06.20"]
[WhiteClock "0:00:34"]
[BlackClock "0:00:00"]
[Board "161"]

1. d4 {[%clk 0:02:55]}  Nf6 {[%clk 0:02:59]} 2. c4 {[%clk 0:02:56]}  c5 {[%clk 0:03:00]} 3. d5 {[%clk 0:02:56]}  b5 {[%clk 0:03:00]} 4. cxb5 {[%clk 0:02:57]}  a6 {[%clk 0:03:01]} 5. Nc3 {[%clk 0:02:58]}  g6 {[%clk 0:02:57]} 6. e4 {[%clk 0:02:59]}  d6 {[%clk 0:02:45]} 7. Nf3 {[%clk 0:02:58]}  Bg7 {[%clk 0:02:45]} 8. bxa6 {[%clk 0:02:57]}  O-O {[%clk 0:02:44]} 9. Be2 {[%clk 0:02:57]}  Qa5 {[%clk 0:02:39]} 10. O-O {[%clk 0:02:58]}  Bxa6 {[%clk 0:02:38]} 11. h3 {[%clk 0:02:56]}  Bxe2 {[%clk 0:02:37]} 12. Qxe2 {[%clk 0:02:55]}  Qa6 {[%clk 0:02:38]} 13. Qc2 {[%clk 0:02:53]}  Nbd7 {[%clk 0:02:37]} 14. Bg5 {[%clk 0:02:53]}  h6 {[%clk 0:02:31]} 15. Bf4 {[%clk 0:02:52]}  Rfb8 {[%clk 0:02:29]} 16. Rab1 {[%clk 0:02:49]}  Ne8 {[%clk 0:02:18]} 17. a3 {[%clk 0:02:36]}  Nc7 {[%clk 0:02:14]} 18. Rfe1 {[%clk 0:02:30]}  Nb5 {[%clk 0:02:09]} 19. Nxb5 {[%clk 0:02:27]}  Rxb5 {[%clk 0:02:09]} 20. e5 {[%clk 0:02:24]}  dxe5 {[%clk 0:01:59]} 21. Nxe5 {[%clk 0:02:25]}  Nxe5 {[%clk 0:01:22]} 22. Bxe5 {[%clk 0:02:26]}  Bxe5 {[%clk 0:01:14]} 23. Rxe5 {[%clk 0:02:27]}  Qd6 {[%clk 0:01:14]} 24. Rbe1 {[%clk 0:02:21]}  Rb7 {[%clk 0:01:12]} 25. Qe4 {[%clk 0:01:31]}  Rxb2 {[%clk 0:00:58]} 26. Re6 {[%clk 0:01:22]}  fxe6 {[%clk 0:00:31]} 27. Qxg6+ {[%clk 0:01:20]}  Kh8 {[%clk 0:00:31]} 28. Qxh6+ {[%clk 0:01:19]}  Kg8 {[%clk 0:00:31]} 29. Qg6+ {[%clk 0:01:04]}  Kh8 {[%clk 0:00:32]} 30. Rxe6 {[%clk 0:00:52]}  Qxd5 {[%clk 0:00:12]} 31. Qh6+ {[%clk 0:00:51]}  Kg8 {[%clk 0:00:12]} 32. Rg6+ {[%clk 0:00:50]}  Kf7 {[%clk 0:00:13]} 33. Qg7+ {[%clk 0:00:49]}  Ke8 {[%clk 0:00:13]} 34. Qxb2 {[%clk 0:00:49]}  Qd1+ {[%clk 0:00:10]} 35. Kh2 {[%clk 0:00:49]}  Rd8 {[%clk 0:00:07]} 36. Rg8+ {[%clk 0:00:47]}  Kf7 {[%clk 0:00:07]} 37. Qg7+ {[%clk 0:00:45]}  Ke6 {[%clk 0:00:07]} 38. Qg6+ {[%clk 0:00:41]}  Kd7 {[%clk 0:00:06]} 39. Qf5+ {[%clk 0:00:39]}  Kc7 {[%clk 0:00:06]} 40. Qxc5+ {[%clk 0:00:38]}  Kb7 {[%clk 0:00:05]} 41. Qxe7+ {[%clk 0:00:36]}  Rd7 {[%clk 0:00:05]} 42. Qb4+ {[%clk 0:00:36]}  Kc7 {[%clk 0:00:00]} 43. Rg3 {[%clk 0:00:34]} 1-0


[Site "https://www.chess.com"]

[Event "Titled Tuesday Blitz June 20 Early 2023"]
[White "Daianu, Cristian-Clement"]
[Black "Vyatkin, Dmitry"]
[WhiteFideId "1208926"]
[BlackFideId "4171900"]
[WhiteElo "2097"]
[BlackElo "2279"]
[Result "0-1"]
[Round "6"]
[TimeControl "180+2"]
[Date "2023.06.20"]
[WhiteClock "0:00:19"]
[BlackClock "0:00:38"]
[Board "162"]

1. d4 {[%clk 0:03:00]}  Nf6 {[%clk 0:02:57]} 2. Nf3 {[%clk 0:02:59]}  g6 {[%clk 0:02:58]} 3. Bg5 {[%clk 0:02:57]}  Bg7 {[%clk 0:02:57]} 4. Nc3 {[%clk 0:02:57]}  d5 {[%clk 0:02:53]} 5. Qd2 {[%clk 0:02:57]}  Ne4 {[%clk 0:02:46]} 6. Nxe4 {[%clk 0:02:56]}  dxe4 {[%clk 0:02:46]} 7. Ng1 {[%clk 0:02:55]}  Qxd4 {[%clk 0:02:45]} 8. Qxd4 {[%clk 0:02:54]}  Bxd4 {[%clk 0:02:44]} 9. e3 {[%clk 0:02:52]}  Bxb2 {[%clk 0:02:43]} 10. Rb1 {[%clk 0:02:52]}  Bc3+ {[%clk 0:02:42]} 11. Kd1 {[%clk 0:02:52]}  f6 {[%clk 0:02:15]} 12. Bh6 {[%clk 0:02:51]}  Kf7 {[%clk 0:02:08]} 13. Bc4+ {[%clk 0:02:41]}  e6 {[%clk 0:02:08]} 14. Rb3 {[%clk 0:02:31]}  Be5 {[%clk 0:02:06]} 15. h4 {[%clk 0:02:29]}  Nc6 {[%clk 0:02:06]} 16. Rb1 {[%clk 0:02:16]}  Rd8+ {[%clk 0:02:03]} 17. Ke2 {[%clk 0:02:14]}  Na5 {[%clk 0:02:01]} 18. Bb3 {[%clk 0:02:13]}  b6 {[%clk 0:01:59]} 19. Ba4 {[%clk 0:01:57]}  c6 {[%clk 0:01:57]} 20. f4 {[%clk 0:01:55]}  Ba6+ {[%clk 0:01:52]} 21. Kf2 {[%clk 0:01:55]}  Rd2+ {[%clk 0:01:49]} 22. Kg3 {[%clk 0:01:51]}  Bd6 {[%clk 0:01:42]} 23. Nh3 {[%clk 0:01:45]}  Bc5 {[%clk 0:01:40]} 24. Rhe1 {[%clk 0:01:41]}  Nc4 {[%clk 0:01:38]} 25. Nf2 {[%clk 0:01:22]}  b5 {[%clk 0:01:25]} 26. Nxe4 {[%clk 0:01:20]}  Bb6 {[%clk 0:00:59]} 27. Bb3 {[%clk 0:01:11]}  Rd7 {[%clk 0:00:53]} 28. Kf3 {[%clk 0:01:04]}  Rad8 {[%clk 0:00:51]} 29. h5 {[%clk 0:00:57]}  Bb7 {[%clk 0:00:50]} 30. hxg6+ {[%clk 0:00:57]}  Kxg6 {[%clk 0:00:49]} 31. g4 {[%clk 0:00:43]}  c5 {[%clk 0:00:49]} 32. Bxc4 {[%clk 0:00:32]}  bxc4 {[%clk 0:00:49]} 33. Rh1 {[%clk 0:00:28]}  f5 {[%clk 0:00:37]} 34. gxf5+ {[%clk 0:00:28]}  exf5 {[%clk 0:00:38]} 35. Rbg1+ {[%clk 0:00:28]}  Kf7 {[%clk 0:00:38]} 36. Rg7+ {[%clk 0:00:19]}  Ke6 {[%clk 0:00:38]} 0-1


[Site "https://www.chess.com"]

[Event "Titled Tuesday Blitz June 20 Early 2023"]
[White "Shapiro, Daniel"]
[Black "Nikolova, Adriana"]
[WhiteFideId "2001780"]
[BlackFideId "2908689"]
[WhiteElo "2336"]
[BlackElo "2213"]
[Result "1/2-1/2"]
[Round "6"]
[TimeControl "180+2"]
[Date "2023.06.20"]
[WhiteClock "0:00:06"]
[BlackClock "0:00:58"]
[Board "163"]

1. d4 {[%clk 0:03:00]}  Nf6 {[%clk 0:02:59]} 2. c4 {[%clk 0:03:00]}  e6 {[%clk 0:02:59]} 3. g3 {[%clk 0:03:00]}  Bb4+ {[%clk 0:02:58]} 4. Bd2 {[%clk 0:03:00]}  c5 {[%clk 0:02:58]} 5. Nf3 {[%clk 0:02:58]}  Qb6 {[%clk 0:02:58]} 6. Qb3 {[%clk 0:02:39]}  Bxd2+ {[%clk 0:02:55]} 7. Nbxd2 {[%clk 0:02:37]}  Qxb3 {[%clk 0:02:43]} 8. Nxb3 {[%clk 0:02:36]}  cxd4 {[%clk 0:02:42]} 9. Nfxd4 {[%clk 0:02:36]}  a6 {[%clk 0:02:42]} 10. Bg2 {[%clk 0:02:32]}  d6 {[%clk 0:02:42]} 11. O-O {[%clk 0:02:27]}  Nbd7 {[%clk 0:02:42]} 12. Rfd1 {[%clk 0:02:24]}  Ke7 {[%clk 0:02:41]} 13. Rd2 {[%clk 0:02:22]}  Ne5 {[%clk 0:02:40]} 14. Rc1 {[%clk 0:02:16]}  Rb8 {[%clk 0:02:36]} 15. f4 {[%clk 0:02:08]}  Ned7 {[%clk 0:02:35]} 16. a4 {[%clk 0:01:47]}  g6 {[%clk 0:02:31]} 17. a5 {[%clk 0:01:47]}  e5 {[%clk 0:02:27]} 18. Nc2 {[%clk 0:01:09]}  exf4 {[%clk 0:02:25]} 19. gxf4 {[%clk 0:01:08]}  Nc5 {[%clk 0:02:25]} 20. Nbd4 {[%clk 0:00:57]}  Nce4 {[%clk 0:02:21]} 21. Rd3 {[%clk 0:00:55]}  Re8 {[%clk 0:02:17]} 22. Nb4 {[%clk 0:00:51]}  Be6 {[%clk 0:02:14]} 23. Nd5+ {[%clk 0:00:47]}  Bxd5 {[%clk 0:02:10]} 24. cxd5 {[%clk 0:00:47]}  Rec8 {[%clk 0:02:00]} 25. Rxc8 {[%clk 0:00:44]}  Rxc8 {[%clk 0:02:00]} 26. h3 {[%clk 0:00:38]}  Nc5 {[%clk 0:01:58]} 27. Rc3 {[%clk 0:00:35]}  Kd8 {[%clk 0:01:53]} 28. Kf1 {[%clk 0:00:27]}  Nce4 {[%clk 0:01:52]} 29. Rxc8+ {[%clk 0:00:25]}  Kxc8 {[%clk 0:01:52]} 30. Ke1 {[%clk 0:00:21]}  Kc7 {[%clk 0:01:40]} 31. b4 {[%clk 0:00:21]}  h6 {[%clk 0:01:38]} 32. Kd1 {[%clk 0:00:21]}  Ng3 {[%clk 0:01:34]} 33. Kc2 {[%clk 0:00:18]}  g5 {[%clk 0:01:26]} 34. fxg5 {[%clk 0:00:17]}  hxg5 {[%clk 0:01:23]} 35. Kd3 {[%clk 0:00:18]}  Nd7 {[%clk 0:01:22]} 36. Nf3 {[%clk 0:00:16]}  f6 {[%clk 0:01:21]} 37. e4 {[%clk 0:00:11]}  Nh5 {[%clk 0:01:20]} 38. Bf1 {[%clk 0:00:09]}  Nf4+ {[%clk 0:01:20]} 39. Kd4 {[%clk 0:00:09]}  Ne5 {[%clk 0:01:19]} 40. Ne1 {[%clk 0:00:09]}  Kd7 {[%clk 0:01:12]} 41. Nc2 {[%clk 0:00:09]}  Nf3+ {[%clk 0:01:06]} 42. Ke3 {[%clk 0:00:09]}  Ng1 {[%clk 0:01:05]} 43. h4 {[%clk 0:00:09]}  Ng6 {[%clk 0:00:57]} 44. hxg5 {[%clk 0:00:09]}  fxg5 {[%clk 0:00:58]} 45. Nd4 {[%clk 0:00:09]}  Nf4 {[%clk 0:00:57]} 46. Nf3 {[%clk 0:00:06]}  Ngh3 {[%clk 0:00:57]} 47. Nxg5 {[%clk 0:00:05]}  Nxg5 {[%clk 0:00:57]} 48. Kxf4 {[%clk 0:00:05]}  Nf7 {[%clk 0:00:58]} 49. Bd3 {[%clk 0:00:05]}  Ne5 {[%clk 0:00:58]} 50. Be2 {[%clk 0:00:05]}  Ke7 {[%clk 0:00:58]} 51. Kf5 {[%clk 0:00:05]}  Nd7 {[%clk 0:00:58]} 52. b5 {[%clk 0:00:06]}  axb5 {[%clk 0:00:58]} 53. Bxb5 {[%clk 0:00:05]}  Ne5 {[%clk 0:00:57]} 54. a6 {[%clk 0:00:05]}  bxa6 {[%clk 0:00:57]} 55. Bxa6 {[%clk 0:00:06]}  Nd7 {[%clk 0:00:57]} 56. Bb5 {[%clk 0:00:06]}  Ne5 {[%clk 0:00:58]} 57. Bd3 {[%clk 0:00:05]}  Nf3 {[%clk 0:00:58]} 58. Kf4 {[%clk 0:00:04]}  Ne5 {[%clk 0:00:58]} 59. Be2 {[%clk 0:00:05]}  Kf6 {[%clk 0:00:58]} 60. Bb5 {[%clk 0:00:04]}  Ng6+ {[%clk 0:00:58]} 61. Ke3 {[%clk 0:00:02]}  Ke5 {[%clk 0:00:59]} 62. Bd3 {[%clk 0:00:02]}  Nf4 {[%clk 0:00:59]} 63. Bb1 {[%clk 0:00:02]}  Nh3 {[%clk 0:00:59]} 64. Bc2 {[%clk 0:00:02]}  Ng5 {[%clk 0:01:00]} 65. Bb1 {[%clk 0:00:02]}  Nh7 {[%clk 0:01:00]} 66. Bc2 {[%clk 0:00:03]}  Nf6 {[%clk 0:01:00]} 67. Bb1 {[%clk 0:00:03]}  Ng4+ {[%clk 0:01:01]} 68. Kf3 {[%clk 0:00:03]}  Nh6 {[%clk 0:01:01]} 69. Ke3 {[%clk 0:00:03]}  Ng8 {[%clk 0:01:01]} 70. Kf3 {[%clk 0:00:03]}  Ne7 {[%clk 0:01:01]} 71. Ke3 {[%clk 0:00:03]}  Nc8 {[%clk 0:01:02]} 72. Bd3 {[%clk 0:00:04]}  Nb6 {[%clk 0:01:02]} 73. Bc2 {[%clk 0:00:04]}  Nc4+ {[%clk 0:01:02]} 74. Kf3 {[%clk 0:00:04]}  Kd4 {[%clk 0:01:02]} 75. Kf4 {[%clk 0:00:05]}  Kc5 {[%clk 0:01:01]} 76. Bd3 {[%clk 0:00:05]}  Ne5 {[%clk 0:01:02]} 77. Be2 {[%clk 0:00:05]}  Ng6+ {[%clk 0:01:02]} 78. Kf5 {[%clk 0:00:06]}  Ne5 {[%clk 0:01:03]} 79. Ke6 {[%clk 0:00:06]}  Ng6 {[%clk 0:01:02]} 80. Bg4 {[%clk 0:00:06]}  Ne5 {[%clk 0:01:02]} 81. Bf5 {[%clk 0:00:06]}  Nc4 {[%clk 0:01:02]} 82. Bh7 {[%clk 0:00:06]}  Kd4 {[%clk 0:01:02]} 83. Bf5 {[%clk 0:00:06]}  Kc5 {[%clk 0:01:02]} 84. Bh7 {[%clk 0:00:06]}  Nb6 {[%clk 0:00:58]} 85. Bf5 {[%clk 0:00:06]}  Nc4 {[%clk 0:00:58]} 1/2-1/2


[Site "https://www.chess.com"]

[Event "Titled Tuesday Blitz June 20 Early 2023"]
[White "LangesNasenhaar"]
[Black "Sovetbekova, Nurai"]
[BlackFideId "13801910"]
[WhiteElo "2453"]
[BlackElo "1857"]
[Result "1-0"]
[Round "6"]
[TimeControl "180+2"]
[Date "2023.06.20"]
[WhiteClock "0:02:00"]
[BlackClock "0:00:15"]
[Board "164"]

1. d4 {[%clk 0:03:00]}  Nf6 {[%clk 0:02:58]} 2. Nc3 {[%clk 0:03:01]}  d5 {[%clk 0:02:57]} 3. Bf4 {[%clk 0:03:00]}  c5 {[%clk 0:02:55]} 4. e4 {[%clk 0:03:00]}  dxe4 {[%clk 0:02:48]} 5. dxc5 {[%clk 0:03:00]}  Qxd1+ {[%clk 0:02:45]} 6. Rxd1 {[%clk 0:03:01]}  Bg4 {[%clk 0:02:38]} 7. f3 {[%clk 0:02:55]}  exf3 {[%clk 0:02:38]} 8. Nxf3 {[%clk 0:02:55]}  Nbd7 {[%clk 0:02:37]} 9. Bb5 {[%clk 0:02:52]}  Rc8 {[%clk 0:02:08]} 10. b4 {[%clk 0:02:51]}  a6 {[%clk 0:01:20]} 11. Ba4 {[%clk 0:02:50]}  a5 {[%clk 0:01:20]} 12. a3 {[%clk 0:02:48]}  axb4 {[%clk 0:01:17]} 13. axb4 {[%clk 0:02:49]}  Bxf3 {[%clk 0:01:02]} 14. gxf3 {[%clk 0:02:49]}  e6 {[%clk 0:01:02]} 15. Bg5 {[%clk 0:02:36]}  Rd8 {[%clk 0:00:56]} 16. Bxf6 {[%clk 0:02:23]}  gxf6 {[%clk 0:00:55]} 17. Kf2 {[%clk 0:02:24]}  Bh6 {[%clk 0:00:32]} 18. Rxd7 {[%clk 0:02:19]}  Rxd7 {[%clk 0:00:30]} 19. Rd1 {[%clk 0:02:20]}  Kf8 {[%clk 0:00:28]} 20. Rxd7 {[%clk 0:02:17]}  Kg7 {[%clk 0:00:29]} 21. Rxb7 {[%clk 0:02:18]}  Rd8 {[%clk 0:00:28]} 22. Ne4 {[%clk 0:02:15]}  Rd1 {[%clk 0:00:26]} 23. c6 {[%clk 0:02:11]}  Rh1 {[%clk 0:00:23]} 24. c7 {[%clk 0:02:08]}  Rxh2+ {[%clk 0:00:23]} 25. Kg3 {[%clk 0:02:08]}  Re2 {[%clk 0:00:17]} 26. c8=Q {[%clk 0:02:06]}  e5 {[%clk 0:00:15]} 27. Qg4+ {[%clk 0:02:00]} 1-0


[Site "https://www.chess.com"]